bitfinex-derivatives/quotes_BTCF0:USTF0_20250919
["timestamp","ask_amount","ask_price","bid_price","bid_amount"]
[1758304178974,3.44398593,115720.0,115710.0,0.03614]
[1758304179174,3.44704593,115720.0,115710.0,0.02334]
[1758304179579,3.10820029,115720.0,115710.0,0.02334]
[1758304179779,3.44704593,115720.0,115710.0,0.02334]
[1758304179977,2.31586029,115720.0,115710.0,0.64526983]
[1758304180278,3.10510029,115720.0,115710.0,0.73164723]
[1758304181068,1.28482029,115720.0,115710.0,0.73164723]
[1758304181880,0.49558029,115720.0,115710.0,0.73164723]
[1758304182281,1.28482029,115720.0,115710.0,0.73164723]
[1758304182482,0.49558029,115720.0,115710.0,0.73164723]
[1758304182672,1.28482029,115720.0,115710.0,0.84028869]
[1758304183572,0.92402029,115720.0,115710.0,0.84028869]
[1758304184185,0.92402029,115720.0,115710.0,0.73164723]
[1758304184477,0.92402029,115720.0,115710.0,0.64526983]
[1758304186183,0.92398029,115720.0,115710.0,0.64526983]
[1758304190276,1.28478029,115720.0,115710.0,0.64526983]
[1758304197693,1.28478029,115720.0,115710.0,0.75400488]
[1758304200684,1.62668593,115720.0,115710.0,0.40235924]
[1758304200892,1.87668593,115720.0,115710.0,0.10973505]
[1758304202494,1.87668593,115720.0,115710.0,0.001]
[1758304206696,0.1225273,115710.0,115700.0,0.06922724]
[1758304206900,0.1195047,115700.0,115690.0,0.05057041]
[1758304207098,1.60807034,115700.0,115690.0,0.05057041]
[1758304207497,1.60807034,115700.0,115690.0,0.02857041]
[1758304207794,1.60807034,115700.0,115690.0,0.02007128]
[1758304208201,1.61507034,115700.0,115690.0,0.12882699]
[1758304208903,1.61707034,115700.0,115690.0,0.12882699]
[1758304209802,1.95617868,115700.0,115690.0,0.12882699]
[1758304211200,1.95617868,115700.0,115690.0,0.19801182]
[1758304214294,1.95617868,115700.0,115690.0,0.08925611]
[1758304217500,1.95613868,115700.0,115690.0,0.08925611]
[1758304217696,1.16725868,115700.0,115690.0,0.08925611]
[1758304218008,1.95613868,115700.0,115690.0,0.08925611]
[1758304218201,1.16725868,115700.0,115690.0,0.08925611]
[1758304218402,1.95617868,115700.0,115690.0,0.08925611]
[1758304218600,1.16725868,115700.0,115690.0,0.08925611]
[1758304219003,1.95613868,115700.0,115690.0,0.08925611]
[1758304220505,1.16725868,115700.0,115690.0,0.08925611]
[1758304220905,1.95617868,115700.0,115690.0,0.08925611]
[1758304225112,1.95617868,115700.0,115670.0,0.01342]
[1758304225317,0.44719659,115680.0,115670.0,0.03532]
[1758304225509,1.23917659,115680.0,115670.0,0.022]
[1758304225705,1.93895358,115680.0,115670.0,0.13064755]
[1758304225910,1.59997659,115680.0,115670.0,0.46962454]
[1758304226616,1.59997659,115680.0,115670.0,0.13064755]
[1758304226819,1.59997659,115680.0,115670.0,0.46962454]
[1758304227012,1.60697659,115680.0,115670.0,0.46962454]
[1758304227621,1.60697659,115680.0,115670.0,0.13064755]
[1758304227819,0.81805659,115680.0,115670.0,0.46962454]
[1758304228018,1.60697659,115680.0,115670.0,0.46962454]
[1758304228221,1.60897659,115680.0,115670.0,0.13923584]
[1758304228422,1.60897659,115680.0,115670.0,0.47821283]
[1758304229321,0.82005659,115680.0,115670.0,0.47821283]
[1758304229825,1.60933659,115680.0,115670.0,0.47821283]
[1758304230024,0.4780196,115680.0,115670.0,0.49170283]
[1758304230224,1.60623659,115680.0,115670.0,0.56043652]
[1758304232226,0.81699659,115680.0,115670.0,0.56043652]
[1758304232428,1.60611659,115680.0,115670.0,0.56043652]
[1758304233020,1.60611659,115680.0,115670.0,0.45178897]
[1758304233213,0.81699659,115680.0,115670.0,0.45178897]
[1758304233416,1.60603659,115680.0,115670.0,0.45178897]
[1758304233721,0.81699659,115680.0,115670.0,0.45178897]
[1758304234124,1.60595659,115680.0,115670.0,0.45178897]
[1758304234524,1.60901659,115680.0,115670.0,0.09932198]
[1758304234728,1.60595659,115680.0,115670.0,0.45178897]
[1758304234929,0.4780196,115680.0,115670.0,0.45178897]
[1758304235137,1.60595659,115680.0,115670.0,0.45178897]
[1758304235630,0.81699659,115680.0,115670.0,0.45178897]
[1758304235830,1.60859659,115680.0,115670.0,0.45178897]
[1758304237527,1.60859659,115680.0,115670.0,0.11281198]
[1758304237735,1.60859659,115680.0,115670.0,0.45178897]
[1758304238033,1.60859659,115680.0,115670.0,0.56054557]
[1758304238231,1.2726796,115680.0,115670.0,0.56054557]
[1758304238433,1.60859659,115680.0,115670.0,0.56054557]
[1758304239936,1.60859659,115680.0,115670.0,0.22156858]
[1758304240233,1.60859659,115680.0,115670.0,0.56054557]
[1758304243437,0.4780196,115680.0,115670.0,0.56054557]
[1758304243638,1.61099659,115680.0,115670.0,0.56054557]
[1758304244436,1.2720196,115680.0,115670.0,0.56054557]
[1758304244631,1.61099659,115680.0,115670.0,0.56054557]
[1758304245241,1.61099659,115680.0,115670.0,0.22156858]
[1758304245438,1.61099659,115680.0,115670.0,0.56054557]
[1758304245939,1.61099659,115680.0,115670.0,0.45178897]
[1758304246740,0.4780196,115680.0,115670.0,0.45178897]
[1758304248045,1.61119659,115680.0,115670.0,0.45178897]
[1758304248238,0.1172196,115680.0,115670.0,0.87717386]
[1758304248441,0.009,115680.0,115670.0,1.46615085]
[1758304248644,0.009,115680.0,115670.0,1.23595893]
[1758304248839,0.8034,115680.0,115670.0,1.23595893]
[1758304249046,0.8034,115680.0,115670.0,1.48797386]
[1758304249238,0.009,115680.0,115670.0,1.48797386]
[1758304249435,0.8034,115680.0,115670.0,1.50628386]
[1758304251938,0.8898004,115680.0,115670.0,1.50628386]
[1758304252540,0.009,115680.0,115670.0,1.84526085]
[1758304252741,0.009,115680.0,115670.0,2.63918085]
[1758304253550,0.009,115680.0,115670.0,2.84008844]
[1758304253750,0.009,115680.0,115670.0,1.70719145]
[1758304255256,0.0954004,115680.0,115670.0,1.70719145]
[1758304255839,0.0954004,115680.0,115670.0,1.50628386]
[1758304256443,0.0954004,115680.0,115670.0,1.63479655]
[1758304256946,0.0954004,115680.0,115670.0,1.81359655]
[1758304257447,0.1172304,115680.0,115670.0,1.09610687]
[1758304257644,0.1172304,115680.0,115670.0,1.59032309]
[1758304261460,0.1172304,115680.0,115670.0,0.91236911]
[1758304261665,1.06700739,115680.0,115670.0,0.8041382]
[1758304261870,1.06700739,115680.0,115670.0,0.7858282]
[1758304262465,1.06700739,115680.0,115670.0,0.63058897]
[1758304262864,1.06700739,115680.0,115670.0,0.45178897]
[1758304266668,1.86064739,115680.0,115670.0,0.45178897]
[1758304267663,1.85984739,115680.0,115670.0,0.45279897]
[1758304271178,1.4998404,115680.0,115670.0,0.41629897]
[1758304271371,1.85984739,115680.0,115670.0,0.45279897]
[1758304271777,1.5208704,115680.0,115670.0,0.45285281]
[1758304273479,0.7272304,115680.0,115670.0,0.45285281]
[1758304274275,1.5201904,115680.0,115670.0,0.45285281]
[1758304274462,0.7272304,115680.0,115670.0,0.45285281]
[1758304274662,1.1593104,115680.0,115670.0,0.45285281]
[1758304275076,1.5201104,115680.0,115670.0,0.45285281]
[1758304277781,0.7272304,115680.0,115670.0,0.45285281]
[1758304277974,1.5197504,115680.0,115670.0,0.45285281]
[1758304279388,0.7272304,115680.0,115670.0,0.45285281]
[1758304280079,1.5195504,115680.0,115670.0,0.45285281]
[1758304280278,0.7272304,115680.0,115670.0,0.45285281]
[1758304280478,1.1587104,115680.0,115670.0,0.45285281]
[1758304282276,0.1164304,115680.0,115670.0,0.53926071]
[1758304282480,0.0954004,115680.0,115670.0,0.90006071]
[1758304282777,0.8874404,115680.0,115670.0,1.15006071]
[1758304283468,0.009,115680.0,115670.0,1.15006071]
[1758304283674,0.009,115680.0,115670.0,1.50740154]
[1758304283981,0.009,115680.0,115670.0,1.66264077]
[1758304284981,0.0954004,115680.0,115670.0,1.32360994]
[1758304285183,0.0954004,115680.0,115670.0,1.07360994]
[1758304285587,0.0954004,115680.0,115670.0,0.91837071]
[1758304286186,0.1165204,115680.0,115670.0,0.91837071]
[1758304286382,0.009,115680.0,115670.0,0.91837071]
[1758304286586,0.8012,115680.0,115670.0,1.09717071]
[1758304287390,0.8012,115680.0,115670.0,1.25240994]
[1758304287579,0.8876004,115680.0,115670.0,1.25240994]
[1758304288082,0.8876004,115680.0,115670.0,1.09717071]
[1758304288775,0.8012,115680.0,115670.0,1.25240994]
[1758304290284,0.8876004,115680.0,115670.0,1.25240994]
[1758304291685,0.8012,115680.0,115670.0,1.25240994]
[1758304291881,0.82232,115680.0,115670.0,0.91337911]
[1758304292082,0.8876004,115680.0,115670.0,1.25240994]
[1758304295592,0.9087204,115680.0,115670.0,0.89160994]
[1758304296187,0.9087204,115680.0,115670.0,0.55257911]
[1758304296381,0.9087204,115680.0,115670.0,0.89160994]
[1758304296790,0.9087204,115680.0,115670.0,0.73637071]
[1758304297195,0.1165204,115680.0,115670.0,0.73637071]
[1758304297493,0.9090404,115680.0,115670.0,0.73637071]
[1758304298395,0.9090404,115680.0,115670.0,0.55757071]
[1758304301191,0.9090404,115680.0,115670.0,0.47116281]
[1758304301704,1.5198404,115680.0,115670.0,0.11382198]
[1758304302005,1.87046123,115680.0,115670.0,0.20938566]
[1758304302203,1.87046123,115680.0,115670.0,0.10064198]
[1758304304499,1.86986123,115680.0,115670.0,0.07732198]
[1758304304699,0.1075279,115670.0,115660.0,0.41205583]
[1758304305003,0.4683279,115670.0,115660.0,0.41205583]
[1758304305201,1.2603679,115670.0,115660.0,0.41205583]
[1758304306496,1.2623679,115670.0,115660.0,0.41205583]
[1758304307494,0.4773279,115670.0,115660.0,0.41205583]
[1758304308596,1.2690479,115670.0,115660.0,0.41205583]
[1758304309005,1.2690479,115670.0,115660.0,0.48287618]
[1758304309204,0.4773279,115670.0,115660.0,0.48287618]
[1758304309501,1.2690879,115670.0,115660.0,0.48287618]
[1758304309705,0.4773279,115670.0,115660.0,0.49164786]
[1758304309908,1.2690879,115670.0,115660.0,0.49164786]
[1758304311304,1.2689279,115670.0,115660.0,0.49164786]
[1758304311505,0.4773279,115670.0,115660.0,0.49164786]
[1758304311702,1.2688879,115670.0,115660.0,0.49164786]
[1758304312394,0.4773279,115670.0,115660.0,0.60039154]
[1758304312802,1.2688079,115670.0,115660.0,0.60039154]
[1758304317510,1.2688079,115670.0,115660.0,0.26136071]
[1758304317709,1.2688079,115670.0,115660.0,0.60039154]
[1758304318310,1.2688079,115670.0,115660.0,0.49164786]
[1758304319511,1.2688079,115670.0,115660.0,0.15261703]
[1758304319711,1.2688079,115670.0,115660.0,0.49164786]
[1758304322115,0.4773279,115670.0,115660.0,0.49164786]
[1758304322317,1.2686479,115670.0,115660.0,0.49164786]
[1758304322819,0.4773279,115670.0,115660.0,0.49164786]
[1758304323114,1.2684879,115670.0,115660.0,0.49164786]
[1758304324225,1.60751873,115670.0,115660.0,0.11904203]
[1758304324515,1.60751873,115670.0,115660.0,0.17954988]
[1758304324813,1.60751873,115670.0,115660.0,0.20195988]
[1758304326005,1.2684879,115670.0,115660.0,0.20195988]
[1758304326207,1.2687279,115670.0,115660.0,0.20195988]
[1758304326406,1.60775873,115670.0,115660.0,0.20195988]
[1758304327316,1.60775873,115670.0,115660.0,0.09323035]
[1758304328218,0.81635873,115670.0,115660.0,0.09323035]
[1758304328520,1.60771873,115670.0,115660.0,0.10648035]
[1758304329113,1.2686879,115670.0,115660.0,0.44551118]
[1758304330017,1.2686879,115670.0,115660.0,0.55432874]
[1758304330918,1.60771873,115670.0,115660.0,0.20204791]
[1758304331319,1.60771873,115670.0,115660.0,0.17963791]
[1758304333721,1.60784314,115670.0,115660.0,0.17963791]
[1758304334521,2.19699838,115670.0,115660.0,0.17963791]
[1758304334715,1.85784314,115670.0,115660.0,0.17963791]
[1758304335326,1.85784314,115670.0,115660.0,0.07082035]
[1758304335518,0.1201654,115660.0,115650.0,0.13974766]
[1758304335732,0.82012064,115660.0,115650.0,0.13974766]
[1758304336117,1.15927588,115660.0,115650.0,0.13974766]
[1758304336822,1.15927588,115660.0,115650.0,0.10881756]
[1758304337012,1.42681799,115660.0,115650.0,0.1778604]
[1758304337332,2.21965799,115660.0,115650.0,0.1778604]
[1758304337719,2.21965799,115660.0,115650.0,0.10881756]
[1758304337920,0.1201728,115650.0,115640.0,0.4479728]
[1758304338222,0.82012804,115650.0,115640.0,0.10881756]
[1758304338622,0.82012804,115650.0,115640.0,0.4479728]
[1758304338816,1.61340804,115650.0,115640.0,0.4479728]
[1758304339424,0.82012804,115650.0,115640.0,0.4479728]
[1758304340025,0.82712804,115650.0,115640.0,0.4479728]
[1758304340224,1.62020804,115650.0,115640.0,0.4479728]
[1758304340426,1.62020804,115650.0,115640.0,0.33915524]
[1758304340825,1.62220804,115650.0,115640.0,0.33915524]
[1758304341229,0.4899728,115650.0,115640.0,0.33915524]
[1758304341525,1.62208804,115650.0,115640.0,0.33915524]
[1758304341726,0.82912804,115650.0,115640.0,0.4321835]
[1758304342126,1.2712628,115650.0,115640.0,0.87962333]
[1758304342328,0.9105828,115650.0,115640.0,1.46877857]
[1758304342514,0.9105828,115650.0,115640.0,1.12962333]
[1758304343125,0.9105828,115650.0,115640.0,1.23844089]
[1758304343327,0.1175828,115650.0,115640.0,1.59924089]
[1758304343525,0.9106628,115650.0,115640.0,1.59924089]
[1758304343725,0.9106628,115650.0,115640.0,1.23844089]
[1758304343927,0.9106628,115650.0,115640.0,1.59924089]
[1758304344125,0.9106628,115650.0,115640.0,1.23844089]
[1758304344431,0.9106628,115650.0,115640.0,1.15201059]
[1758304346328,0.9106628,115650.0,115640.0,1.1434063]
[1758304346521,1.62220804,115650.0,115640.0,0.51859106]
[1758304346724,1.62220804,115650.0,115640.0,0.4097735]
[1758304346927,1.62220804,115650.0,115640.0,0.4328435]
[1758304347119,1.62220804,115650.0,115640.0,0.54166106]
[1758304347325,0.82912804,115650.0,115640.0,0.54166106]
[1758304347526,1.62252804,115650.0,115640.0,0.54166106]
[1758304349129,1.62252804,115650.0,115640.0,0.07061826]
[1758304349130,1.87252804,115650.0,115640.0,0.07061826]
[1758304349336,0.1083503,115640.0,115630.0,0.36226524]
[1758304349523,1.60158554,115640.0,115630.0,0.4847528]
[1758304350635,1.61317554,115640.0,115630.0,0.49340332]
[1758304350940,1.61517554,115640.0,115630.0,0.49340332]
[1758304351331,1.61517554,115640.0,115630.0,0.56216767]
[1758304352530,1.62117554,115640.0,115630.0,0.56216767]
[1758304352732,1.62117554,115640.0,115630.0,0.54849767]
[1758304354238,1.62061554,115640.0,115630.0,0.54849767]
[1758304356539,0.82789554,115640.0,115630.0,0.54849767]
[1758304356741,1.62037554,115640.0,115630.0,0.54849767]
[1758304358335,0.81630554,115640.0,115630.0,0.56216767]
[1758304358535,1.60874554,115640.0,115630.0,0.56216767]
[1758304360434,1.62033554,115640.0,115630.0,0.54849767]
[1758304361836,1.62033554,115640.0,115630.0,0.20934243]
[1758304362032,1.62033554,115640.0,115630.0,0.54849767]
[1758304362238,1.62033554,115640.0,115630.0,0.43968011]
[1758304362741,1.62033554,115640.0,115630.0,0.07745487]
[1758304362948,1.95949078,115640.0,115630.0,0.52537664]
[1758304363143,1.95949078,115640.0,115630.0,0.1862214]
[1758304363440,1.62033554,115640.0,115630.0,0.52537664]
[1758304364440,1.62033554,115640.0,115630.0,0.43968011]
[1758304366340,1.95949078,115640.0,115630.0,0.43968011]
[1758304367547,1.16705078,115640.0,115630.0,0.43968011]
[1758304367743,1.2684703,115640.0,115630.0,0.45335011]
[1758304368047,0.81630554,115640.0,115630.0,0.45335011]
[1758304368237,1.60758554,115640.0,115630.0,0.45335011]
[1758304368850,0.81630554,115640.0,115630.0,0.45335011]
[1758304369043,1.60758554,115640.0,115630.0,0.45335011]
[1758304370348,1.2684303,115640.0,115630.0,0.45335011]
[1758304370646,1.60758554,115640.0,115630.0,0.45335011]
[1758304373350,1.60758554,115640.0,115630.0,0.60869822]
[1758304373848,1.2684303,115640.0,115630.0,0.60869822]
[1758304374042,1.60758554,115640.0,115630.0,0.60869822]
[1758304374242,1.2684303,115640.0,115630.0,0.60869822]
[1758304374442,1.60758554,115640.0,115630.0,0.60869822]
[1758304376044,1.2680303,115640.0,115630.0,0.60869822]
[1758304376248,1.60718554,115640.0,115630.0,0.60869822]
[1758304376750,1.2680303,115640.0,115630.0,0.60869822]
[1758304376950,1.60718554,115640.0,115630.0,0.60869822]
[1758304378049,1.2680303,115640.0,115630.0,0.60869822]
[1758304378452,1.60718554,115640.0,115630.0,0.60869822]
[1758304378852,1.60718554,115640.0,115630.0,0.26954298]
[1758304379054,1.2680303,115640.0,115630.0,0.60869822]
[1758304379256,1.60718554,115640.0,115630.0,0.60869822]
[1758304379754,1.61877554,115640.0,115630.0,0.45335011]
[1758304380054,1.60718554,115640.0,115630.0,0.45335011]
[1758304380355,1.60718554,115640.0,115630.0,0.56228766]
[1758304380546,1.2680303,115640.0,115630.0,0.56228766]
[1758304380750,0.81630554,115640.0,115630.0,0.56228766]
[1758304381254,1.60718554,115640.0,115630.0,0.64872556]
[1758304384556,1.60718554,115640.0,115630.0,0.56228766]
[1758304386647,0.4771503,115640.0,115630.0,1.2378808]
[1758304386849,1.2677103,115640.0,115630.0,1.2378808]
[1758304387159,1.2677103,115640.0,115630.0,0.89872556]
[1758304388152,1.2677103,115640.0,115630.0,0.78978801]
[1758304389950,1.60686554,115640.0,115630.0,0.78978801]
[1758304391661,1.60686554,115640.0,115630.0,0.70335011]
[1758304391964,1.60686554,115640.0,115630.0,0.45335011]
[1758304392754,1.95761078,115640.0,115630.0,0.11419487]
[1758304392961,1.95761078,115640.0,115630.0,0.41661011]
[1758304393862,1.61859864,115640.0,115630.0,0.09969487]
[1758304395467,1.63592461,115640.0,115630.0,0.1863823]
[1758304396254,1.88592461,115640.0,115630.0,0.07745487]
[1758304396455,1.88592461,115640.0,115630.0,0.06880435]
[1758304396655,1.88592461,115640.0,115630.0,0.07768646]
[1758304396850,1.88592461,115640.0,115630.0,0.06880435]
[1758304398765,1.09536461,115640.0,115630.0,0.06880435]
[1758304398968,1.88588461,115640.0,115630.0,0.07726441]
[1758304399263,1.09536461,115640.0,115630.0,0.00850006]
[1758304399561,1.88588461,115640.0,115630.0,0.00850006]
[1758304400063,1.87429461,115640.0,115630.0,0.04365006]
[1758304400257,0.74447627,115640.0,115630.0,0.04365006]
[1758304400457,0.74447627,115640.0,115630.0,0.3829484]
[1758304400658,1.53499627,115640.0,115630.0,0.3829484]
[1758304401067,0.74447627,115640.0,115630.0,0.3829484]
[1758304401254,1.53499627,115640.0,115630.0,0.3829484]
[1758304401861,1.53499627,115640.0,115630.0,0.04365006]
[1758304402063,1.53499627,115640.0,115630.0,0.3829484]
[1758304403771,1.53499627,115640.0,115630.0,0.45185798]
[1758304406172,1.53499627,115640.0,115630.0,0.11255964]
[1758304406378,1.53499627,115640.0,115630.0,0.45185798]
[1758304407085,1.28499627,115640.0,115630.0,0.45185798]
[1758304408376,1.62429461,115640.0,115630.0,0.09964964]
[1758304408780,1.62429461,115640.0,115630.0,0.20852514]
[1758304410484,1.62429461,115640.0,115630.0,0.09964964]
[1758304411282,1.62429461,115640.0,115630.0,0.20852574]
[1758304412282,1.62429461,115640.0,115630.0,0.22160574]
[1758304413083,1.28499627,115640.0,115630.0,0.22160574]
[1758304413683,1.28499627,115640.0,115630.0,0.11272964]
[1758304413982,1.28499627,115640.0,115630.0,0.45202798]
[1758304416785,1.28495627,115640.0,115630.0,0.45202798]
[1758304418682,1.27895627,115640.0,115630.0,0.45202798]
[1758304419486,1.28495627,115640.0,115630.0,0.45202798]
[1758304419784,0.49447627,115640.0,115630.0,0.45202798]
[1758304419987,1.62425461,115640.0,115630.0,0.45202798]
[1758304420183,1.28491627,115640.0,115630.0,0.53846588]
[1758304420486,0.49447627,115640.0,115630.0,0.53846588]
[1758304420686,1.28491627,115640.0,115630.0,0.53846588]
[1758304421287,0.49447627,115640.0,115630.0,0.53846588]
[1758304421589,1.28491627,115640.0,115630.0,0.53846588]
[1758304423481,0.49447627,115640.0,115630.0,0.53846588]
[1758304423678,0.49447627,115640.0,115630.0,0.45202798]
[1758304423986,1.28491627,115640.0,115630.0,0.53846588]
[1758304427390,1.28491627,115640.0,115630.0,0.69381399]
[1758304427585,1.28491627,115640.0,115630.0,0.60737609]
[1758304428090,1.28491627,115640.0,115630.0,0.45202798]
[1758304430189,1.28491627,115640.0,115630.0,0.11272964]
[1758304430383,1.28491627,115640.0,115630.0,0.45202798]
[1758304430986,0.49447627,115640.0,115630.0,0.53846598]
[1758304431194,1.28487627,115640.0,115630.0,0.78846598]
[1758304432194,1.28487627,115640.0,115630.0,0.94381409]
[1758304432896,0.92407627,115640.0,115630.0,0.94381409]
[1758304434099,0.92403627,115640.0,115630.0,0.94381409]
[1758304435989,0.11175627,115640.0,115630.0,0.94381409]
[1758304436295,0.92339627,115640.0,115630.0,0.94381409]
[1758304436992,0.92339627,115640.0,115630.0,0.60451575]
[1758304437193,0.92339627,115640.0,115630.0,0.94381409]
[1758304441299,0.92339627,115640.0,115630.0,0.60451575]
[1758304441500,0.92339627,115640.0,115630.0,0.94381409]
[1758304443904,0.92339627,115640.0,115630.0,0.69381409]
[1758304445500,0.13303627,115640.0,115630.0,0.69381409]
[1758304445696,0.92331627,115640.0,115630.0,0.69381409]
[1758304448397,0.92327627,115640.0,115630.0,0.69381409]
[1758304449103,0.92327627,115640.0,115630.0,0.53846598]
[1758304453908,0.92327627,115640.0,115630.0,0.69381409]
[1758304455213,0.75982436,115640.0,115630.0,0.69381409]
[1758304455408,0.78089436,115640.0,115630.0,0.69381409]
[1758304455814,0.86732466,115640.0,115630.0,0.26807775]
[1758304456112,1.20654035,115640.0,115630.0,0.60729344]
[1758304456414,0.86732466,115640.0,115630.0,0.60729344]
[1758304456611,1.20654035,115640.0,115630.0,0.60729344]
[1758304457208,1.20654035,115640.0,115630.0,0.69373144]
[1758304460618,1.56734035,115640.0,115630.0,0.60729344]
[1758304460913,2.15655604,115640.0,115630.0,0.26807775]
[1758304461214,1.39673168,115640.0,115630.0,0.60729344]
[1758304461611,1.05751599,115640.0,115630.0,0.60729344]
[1758304461814,1.5083803,115640.0,115630.0,0.60729344]
[1758304462011,1.84759599,115640.0,115630.0,0.45194533]
[1758304463802,1.84759599,115640.0,115630.0,0.44348527]
[1758304464009,2.18681168,115640.0,115630.0,0.10426958]
[1758304464203,1.39673168,115640.0,115630.0,0.44348527]
[1758304464409,2.18681168,115640.0,115630.0,0.44348527]
[1758304465019,2.18681168,115640.0,115630.0,0.45218111]
[1758304465418,1.39673168,115640.0,115630.0,0.45218111]
[1758304465717,2.18677168,115640.0,115630.0,0.45218111]
[1758304465918,2.18677168,115640.0,115630.0,0.11296542]
[1758304466120,1.84755599,115640.0,115630.0,0.11296542]
[1758304466313,2.18677168,115640.0,115630.0,0.11296542]
[1758304466520,1.39673168,115640.0,115630.0,0.11296542]
[1758304466719,2.18677168,115640.0,115630.0,0.11296542]
[1758304468023,2.18677168,115640.0,115630.0,0.10426958]
[1758304468322,1.39673168,115640.0,115630.0,0.10426958]
[1758304468523,2.18677168,115640.0,115630.0,0.21316076]
[1758304468724,1.39673168,115640.0,115630.0,0.21316076]
[1758304468923,2.18677168,115640.0,115630.0,0.2220048]
[1758304469625,2.18677168,115640.0,115630.0,0.44348527]
[1758304469922,2.18677168,115640.0,115630.0,0.55237327]
[1758304470830,2.18677168,115640.0,115630.0,0.21315758]
[1758304471227,2.18677168,115640.0,115630.0,0.17783758]
[1758304472929,2.18677168,115640.0,115630.0,0.06894958]
[1758304473330,2.18677168,115640.0,115630.0,0.17782903]
[1758304473737,2.18677168,115640.0,115630.0,0.06894958]
[1758304475132,1.5083403,115640.0,115630.0,0.06894958]
[1758304475331,2.18677168,115640.0,115630.0,0.06894958]
[1758304475532,1.93677168,115640.0,115630.0,0.06894958]
[1758304475736,2.18677168,115640.0,115630.0,0.17782332]
[1758304476232,2.18677168,115640.0,115630.0,0.06894958]
[1758304476735,1.39673168,115640.0,115630.0,0.06894958]
[1758304477137,2.18669168,115640.0,115630.0,0.06894958]
[1758304478233,1.39673168,115640.0,115630.0,0.06894958]
[1758304478439,2.18669168,115640.0,115630.0,0.14670715]
[1758304479142,1.39673168,115640.0,115630.0,0.14670715]
[1758304479335,1.14673168,115640.0,115630.0,0.14670715]
[1758304480033,1.93665168,115640.0,115630.0,0.14670715]
[1758304480229,1.14673168,115640.0,115630.0,0.14670715]
[1758304480832,1.93665168,115640.0,115630.0,0.14670715]
[1758304481032,1.14673168,115640.0,115630.0,0.14670715]
[1758304481331,1.93665168,115640.0,115630.0,0.14670715]
[1758304481738,1.14673168,115640.0,115630.0,0.14670715]
[1758304481932,1.93665168,115640.0,115630.0,0.14670715]
[1758304484743,1.14673168,115640.0,115630.0,0.14670715]
[1758304484942,1.93661168,115640.0,115630.0,0.14670715]
[1758304485837,1.14673168,115640.0,115630.0,0.14670715]
[1758304486042,1.93661168,115640.0,115630.0,0.14670715]
[1758304486244,1.14673168,115640.0,115630.0,0.14670715]
[1758304486638,0.4683003,115640.0,115630.0,0.14670715]
[1758304486846,1.93661168,115640.0,115630.0,0.06894958]
[1758304489248,1.93661168,115640.0,115630.0,0.17782332]
[1758304490350,1.93661168,115640.0,115630.0,0.06894958]
[1758304491751,1.95409375,115640.0,115630.0,0.06894958]
[1758304491948,1.95408644,115640.0,115630.0,0.06894958]
[1758304493354,1.95408644,115640.0,115630.0,0.14671649]
[1758304495358,1.14673168,115640.0,115630.0,0.14671649]
[1758304495660,1.93653168,115640.0,115630.0,0.14671649]
[1758304495867,1.14673168,115640.0,115630.0,0.14671649]
[1758304496054,0.4683003,115640.0,115630.0,0.52142218]
[1758304496256,1.2581003,115640.0,115630.0,0.52142218]
[1758304496456,1.59731599,115640.0,115630.0,0.69365527]
[1758304498056,0.80751599,115640.0,115630.0,0.69365527]
[1758304498261,1.59731599,115640.0,115630.0,0.69365527]
[1758304498561,1.2581003,115640.0,115630.0,0.69365527]
[1758304498746,1.59731599,115640.0,115630.0,0.69365527]
[1758304500563,1.93653168,115640.0,115630.0,0.80252901]
[1758304501458,1.93653168,115640.0,115630.0,0.46331332]
[1758304501658,1.93653168,115640.0,115630.0,0.17782332]
[1758304505067,1.14673168,115640.0,115630.0,0.55311901]
[1758304505262,1.59723599,115640.0,115630.0,0.55311901]
[1758304505560,1.93645168,115640.0,115630.0,0.55311901]
[1758304507563,1.93645168,115640.0,115630.0,0.17782332]
[1758304508771,1.93645168,115640.0,115630.0,0.06894958]
[1758304509263,1.95043168,115640.0,115630.0,0.06894958]
[1758304509869,1.95039168,115640.0,115630.0,0.06894958]
[1758304512170,1.16071168,115640.0,115630.0,0.06894958]
[1758304512373,1.95035168,115640.0,115630.0,0.06894958]
[1758304512971,1.12566168,115640.0,115630.0,0.06894958]
[1758304513163,1.91530168,115640.0,115630.0,0.06894958]
[1758304513571,1.12566168,115640.0,115630.0,0.06894958]
[1758304513872,1.91530168,115640.0,115630.0,0.06894958]
[1758304514071,1.91530168,115640.0,115630.0,4e-05]
[1758304515573,1.2368703,115640.0,115630.0,4e-05]
[1758304515773,1.57622112,115640.0,115630.0,4e-05]
[1758304516678,0.78658112,115640.0,115630.0,4e-05]
[1758304516877,1.57618112,115640.0,115630.0,4e-05]
[1758304517080,0.78658112,115640.0,115630.0,4e-05]
[1758304517279,1.57618112,115640.0,115630.0,4e-05]
[1758304517675,0.4472303,115640.0,115630.0,4e-05]
[1758304517876,0.4472303,115640.0,115630.0,0.40702814]
[1758304518075,0.8760303,115640.0,115630.0,0.33939082]
[1758304518282,1.5976303,115640.0,115630.0,0.33939082]
[1758304518885,1.5976303,115640.0,115630.0,0.44826456]
[1758304519480,1.5976303,115640.0,115630.0,0.10891374]
[1758304520683,0.8080303,115640.0,115630.0,0.10891374]
[1758304520883,1.93698112,115640.0,115630.0,0.10891374]
[1758304521685,1.93698112,115640.0,115630.0,0.17864621]
[1758304524482,1.82021027,115640.0,115630.0,0.06977247]
[1758304524874,1.90664057,115640.0,115630.0,0.06977247]
[1758304525075,1.56728975,115640.0,115630.0,0.06977247]
[1758304525276,1.90664057,115640.0,115630.0,0.06977247]
[1758304526187,1.11704057,115640.0,115630.0,0.06977247]
[1758304526384,1.90656057,115640.0,115630.0,0.06977247]
[1758304527081,1.11704057,115640.0,115630.0,0.06977247]
[1758304527386,1.90656057,115640.0,115630.0,0.06977247]
[1758304528485,1.90656057,115640.0,115630.0,0.08957016]
[1758304529682,0.77768975,115640.0,115630.0,0.42892098]
[1758304529887,1.56720975,115640.0,115630.0,0.42892098]
[1758304530282,1.56720975,115640.0,115630.0,0.08957016]
[1758304530482,1.56720975,115640.0,115630.0,0.42892098]
[1758304530684,1.90656057,115640.0,115630.0,0.08957016]
[1758304540801,1.11704057,115640.0,115630.0,0.08957016]
[1758304540989,1.90644057,115640.0,115630.0,0.08957016]
[1758304541396,1.56708975,115640.0,115630.0,0.08957016]
[1758304541599,1.90644057,115640.0,115630.0,0.08957016]
[1758304541801,0.77768975,115640.0,115630.0,0.42892098]
[1758304542104,1.56708975,115640.0,115630.0,0.67892098]
[1758304542304,1.56708975,115640.0,115630.0,0.33957016]
[1758304542505,1.90644057,115640.0,115630.0,0.67892098]
[1758304542906,1.90644057,115640.0,115630.0,0.33957016]
[1758304543404,1.90644057,115640.0,115630.0,0.44849788]
[1758304543593,1.56708975,115640.0,115630.0,0.44849788]
[1758304543798,1.90644057,115640.0,115630.0,0.52630339]
[1758304543998,1.56708975,115640.0,115630.0,0.52630339]
[1758304544198,1.56708975,115640.0,115630.0,0.41737567]
[1758304545205,1.56708975,115640.0,115630.0,0.75672649]
[1758304553415,1.56708975,115640.0,115630.0,0.86565421]